fUST/lending_fUST_20251014
["ID","MTS","AMOUNT","RATE_DAILY","PERIOD"]
[391200061,1760417439627,-500.0,0.00019808,2]
[391200062,1760417439636,-474.45334011,0.00019809,2]
[391200063,1760417439645,-1000.0,0.00019809,2]
[391200064,1760417439656,-1000.0,0.00019809,2]
[391200065,1760417439665,-1000.0,0.00019809,2]
[391200066,1760417439674,-1000.0,0.00019809,2]
[391200067,1760417439684,-1000.0,0.00019809,2]
[391200068,1760417439694,-1000.0,0.00019809,2]
[391200069,1760417439706,-459.78795722,0.00019809,2]
[391200070,1760417439715,-500.0,0.00019809,2]
[391200071,1760417439725,-523.53906682,0.00019809,2]
[391200072,1760417439734,-502.13595211,0.00019809,2]
[391200073,1760417439744,-369.93928304,0.00019809,2]
[391200074,1760417439754,-500.0,0.00019809,2]
[391200075,1760417439765,-500.0,0.00019809,2]
[391200076,1760417439775,-500.0,0.00019809,2]
[391200077,1760417439785,-500.0,0.00019809,2]
[391200078,1760417439795,-500.0,0.00019809,2]
[391200079,1760417439810,-500.0,0.00019809,2]
[391200080,1760417439820,-500.0,0.00019809,2]
[391200081,1760417439831,-500.0,0.00019809,2]
[391200082,1760417439841,-500.0,0.00019809,2]
[391200084,1760417439852,-500.0,0.00019809,2]
[391200086,1760417439862,-500.0,0.00019809,2]
[391200087,1760417439876,-500.0,0.00019809,2]
[391200088,1760417439886,-500.0,0.00019809,2]
[391200089,1760417439896,-500.0,0.00019809,2]
[391200091,1760417439905,-500.0,0.00019809,2]
[391200093,1760417439916,-500.0,0.00019809,2]
[391200096,1760417439925,-461.34928304,0.00019809,2]
[391200098,1760417439935,-621.95515298,0.00019809,2]
[391200099,1760417439945,-500.82408994,0.00019809,2]
[391200100,1760417439955,-500.0,0.00019809,2]
[391200102,1760417439964,-500.0,0.00019809,2]
[391200103,1760417439974,-500.0,0.00019809,2]
[391200105,1760417439983,-500.0,0.00019809,2]
[391200107,1760417439993,-500.0,0.00019809,2]
[391200109,1760417440002,-622.9644005,0.00019809,2]
[391200111,1760417440013,-500.0,0.00019809,2]
[391200113,1760417440023,-500.0,0.00019809,2]
[391200115,1760417440032,-500.0,0.00019809,2]
[391200117,1760417440042,-500.0,0.00019809,2]
[391200119,1760417440052,-500.0,0.00019809,2]
[391200121,1760417440061,-500.0,0.00019809,2]
[391200122,1760417440070,-500.0,0.00019809,2]
[391200124,1760417440079,-500.0,0.00019809,2]
[391200126,1760417440089,-500.0,0.00019809,2]
[391200128,1760417440098,-500.0,0.00019809,2]
[391200130,1760417440108,-500.0,0.00019809,2]
[391200132,1760417440120,-500.0,0.00019809,2]
[391200134,1760417440130,-500.0,0.00019809,2]
[391200136,1760417440139,-500.0,0.00019809,2]
[391200138,1760417440148,-500.0,0.00019809,2]
[391200139,1760417440157,-500.0,0.00019809,2]
[391200141,1760417440167,-500.0,0.00019809,2]
[391200143,1760417440176,-500.0,0.00019809,2]
[391200145,1760417440189,-500.0,0.00019809,2]
[391200147,1760417440198,-500.0,0.00019809,2]
[391200149,1760417440208,-500.0,0.00019809,2]
[391200151,1760417440218,-500.0,0.00019809,2]
[391200153,1760417440228,-500.0,0.00019809,2]
[391200154,1760417440237,-500.0,0.00019809,2]
[391200156,1760417440246,-500.0,0.00019809,2]
[391200158,1760417440256,-500.0,0.00019809,2]
[391200160,1760417440266,-500.0,0.00019809,2]
[391200162,1760417440278,-500.0,0.00019809,2]
[391200164,1760417440287,-500.0,0.00019809,2]
[391200166,1760417440296,-500.0,0.00019809,2]
[391200168,1760417440306,-500.0,0.00019809,2]
[391200170,1760417440316,-189.0,0.00019809,2]
[391200171,1760417440325,-341.36,0.00019809,2]
[391200172,1760417440335,-500.0,0.00019809,2]
[391200173,1760417440344,-500.0,0.00019809,2]
[391200174,1760417440353,-500.0,0.00019809,2]
[391200175,1760417440362,-500.0,0.00019809,2]
[391200176,1760417440375,-500.0,0.00019809,2]
[391200177,1760417440384,-500.0,0.00019809,2]
[391200178,1760417440394,-500.0,0.00019809,2]
[391200179,1760417440403,-500.0,0.00019809,2]
[391200180,1760417440412,-500.0,0.00019809,2]
[391200181,1760417440421,-500.0,0.00019809,2]
[391200182,1760417440430,-500.0,0.00019809,2]
[391200183,1760417440440,-294.57,0.00019809,2]
[391200184,1760417440449,-500.0,0.00019809,2]
[391200185,1760417440458,-500.0,0.00019809,2]
[391200186,1760417440467,-505.87299704,0.00019809,2]
[391200187,1760417440476,-500.0,0.00019809,2]
[391200188,1760417440485,-500.0,0.00019809,2]
[391200189,1760417440494,-500.0,0.00019809,2]
[391200190,1760417440504,-500.0,0.00019809,2]
[391200191,1760417440513,-500.0,0.00019809,2]
[391200192,1760417440522,-500.0,0.00019809,2]
[391200193,1760417440531,-500.0,0.00019809,2]
[391200194,1760417440541,-502.11183188,0.00019809,2]
[391200195,1760417440550,-500.0,0.00019809,2]
[391200196,1760417440559,-500.0,0.00019809,2]
[391200197,1760417440568,-500.0,0.00019809,2]
[391200198,1760417440577,-500.0,0.00019809,2]
[391200199,1760417440586,-559.06,0.00019809,2]
[391200201,1760417440595,-500.0,0.00019809,2]
[391200203,1760417440604,-500.0,0.00019809,2]
[391200205,1760417440613,-500.0,0.00019809,2]
[391200206,1760417440626,-500.0,0.00019809,2]
[391200208,1760417440636,-500.0,0.00019809,2]
[391200211,1760417440646,-500.0,0.00019809,2]
[391200213,1760417440655,-500.0,0.00019809,2]
[391200214,1760417440664,-500.0,0.00019809,2]
[391200216,1760417440674,-500.0,0.00019809,2]
[391200218,1760417440683,-401.46,0.00019809,2]
[391200220,1760417440693,-500.0,0.00019809,2]
[391200222,1760417440702,-287.56,0.00019809,2]
[391200225,1760417440712,-500.72260914,0.00019809,2]
[391200227,1760417440722,-500.0,0.00019809,2]
[391200229,1760417440730,-500.0,0.00019809,2]
[391200231,1760417440739,-500.0,0.00019809,2]
[391200232,1760417440748,-500.0,0.00019809,2]
[391200234,1760417440757,-189.57957379,0.00019809,2]
[391200236,1760417440766,-500.0,0.00019809,2]
[391200238,1760417440775,-500.0,0.00019809,2]
[391200241,1760417440785,-500.0,0.00019809,2]
[391200242,1760417440794,-500.0,0.00019809,2]
[391200244,1760417440803,-500.0,0.00019809,2]
[391200246,1760417440812,-500.0,0.00019809,2]
[391200248,1760417440823,-441.69,0.00019809,2]
[391200250,1760417440831,-500.0,0.00019809,2]
[391200252,1760417440840,-500.0,0.00019809,2]
[391200254,1760417440849,-500.0,0.00019809,2]
[391200256,1760417440858,-500.0,0.00019809,2]
[391200258,1760417440867,-500.0,0.00019809,2]
[391200260,1760417440879,-27014.71953808,0.00019809,2]
[391200262,1760417440887,-500.0,0.0001981,2]
[391200264,1760417440896,-500.0,0.0001981,2]
[391200266,1760417440906,-500.0,0.0001981,2]
[391200268,1760417440915,-500.0,0.0001981,2]
[391200269,1760417440924,-512.19526165,0.0001981,2]
[391200271,1760417440933,-500.0,0.0001981,2]
[391200273,1760417440942,-500.0,0.0001981,2]
[391200275,1760417440951,-500.0,0.0001981,2]
[391200277,1760417440961,-500.0,0.0001981,2]
[391200292,1760417440971,-500.0,0.0001981,2]
[391200294,1760417441107,-500.0,0.0001981,2]
[391200296,1760417441116,-500.0,0.0001981,2]
[391200298,1760417441132,-500.0,0.0001981,2]
[391200300,1760417441142,-500.0,0.0001981,2]
[391200302,1760417441151,-500.0,0.0001981,2]
[391200304,1760417441161,-500.0,0.0001981,2]
[391200306,1760417441170,-500.0,0.0001981,2]
[391200309,1760417441180,-500.0,0.0001981,2]
[391200311,1760417441189,-521.38,0.0001981,2]
[391200312,1760417441205,-500.0,0.0001981,2]
[391200314,1760417441215,-500.0,0.0001981,2]
[391200316,1760417441225,-500.0,0.0001981,2]
[391200318,1760417441235,-500.0,0.0001981,2]
[391200320,1760417441244,-500.0,0.0001981,2]
[391200322,1760417441253,-505.35335534,0.0001981,2]
[391200324,1760417441262,-500.0,0.0001981,2]
[391200326,1760417441273,-500.0,0.0001981,2]
[391200328,1760417441282,-500.0,0.0001981,2]
[391200330,1760417441291,-500.0,0.0001981,2]
[391200332,1760417441300,-500.0,0.0001981,2]
[391200334,1760417441309,-500.0,0.0001981,2]
[391200336,1760417441318,-500.0,0.0001981,2]
[391200338,1760417441327,-500.0,0.0001981,2]
[391200340,1760417441336,-500.0,0.0001981,2]
[391200342,1760417441347,-500.0,0.0001981,2]
[391200343,1760417441356,-500.0,0.0001981,2]
[391200345,1760417441365,-442.57,0.0001981,2]
[391200347,1760417441378,-510.31115464,0.0001981,2]
[391200348,1760417441387,-500.0,0.0001981,2]
[391200349,1760417441398,-438.44,0.0001981,2]
[391200350,1760417441407,-500.0,0.0001981,2]
[391200351,1760417441416,-500.0,0.0001981,2]
[391200352,1760417441425,-500.0,0.0001981,2]
[391200353,1760417441435,-500.0,0.0001981,2]
[391200354,1760417441444,-500.0,0.0001981,2]
[391200355,1760417441453,-500.0,0.0001981,2]
[391200356,1760417441462,-479.76,0.0001981,2]
[391200357,1760417441471,-500.0,0.0001981,2]
[391200358,1760417441480,-500.0,0.0001981,2]
[391200359,1760417441490,-500.0,0.0001981,2]
[391200360,1760417441499,-628.97183095,0.0001981,2]
[391200361,1760417441508,-500.0,0.0001981,2]
[391200363,1760417441517,-500.0,0.0001981,2]
[391200365,1760417441526,-162.0,0.00019909,2]
[391200366,1760417441535,-500.0,0.0001991,2]
[391200367,1760417441544,-500.0,0.0001991,2]
[391200368,1760417441552,-500.0,0.0001991,2]
[391200369,1760417441562,-465.6,0.0001991,2]
[391200371,1760417441571,-500.0,0.0001991,2]
[391200373,1760417441580,-503.33950682,0.0001991,2]
[391200375,1760417441589,-500.0,0.0001991,2]
[391200377,1760417441598,-500.0,0.0001991,2]
[391200379,1760417441607,-500.0,0.0001991,2]
[391200381,1760417441616,-500.0,0.0001991,2]
[391200383,1760417441628,-500.0,0.0001991,2]
[391200385,1760417441638,-500.0,0.0001991,2]
[391200387,1760417441647,-500.0,0.0001991,2]
[391200389,1760417441656,-500.0,0.0001991,2]
[391200391,1760417441665,-500.0,0.0001991,2]
[391200393,1760417441675,-500.0,0.0001991,2]
[391200395,1760417441684,-500.0,0.0001991,2]
[391200397,1760417441693,-500.0,0.0001991,2]
[391200399,1760417441702,-500.0,0.0001991,2]
[391200401,1760417441711,-500.0,0.0001991,2]
[391200403,1760417441720,-500.0,0.0001991,2]
[391200405,1760417441729,-500.0,0.0001991,2]
[391200406,1760417441738,-500.0,0.0001991,2]
[391200408,1760417441747,-500.0,0.0001991,2]
[391200410,1760417441756,-500.0,0.0001991,2]
[391200412,1760417441765,-500.0,0.0001991,2]
[391200414,1760417441774,-500.0,0.0001991,2]
[391200416,1760417441783,-500.0,0.0001991,2]
[391200418,1760417441792,-500.0,0.0001991,2]
[391200420,1760417441802,-500.0,0.0001991,2]
[391200422,1760417441811,-500.0,0.0001991,2]
[391200424,1760417441820,-308.59143386,0.0001991,2]
[391200426,1760417441830,-500.0,0.0001991,2]
[391200428,1760417441840,-500.0,0.0001991,2]
[391200430,1760417441850,-500.0,0.0001991,2]
[391200432,1760417441859,-500.0,0.0001991,2]
[391200434,1760417441868,-500.0,0.0001991,2]
[391200436,1760417441879,-501.03050349,0.0001991,2]
[391200438,1760417441889,-500.0,0.0001991,2]
[391200440,1760417441899,-500.0,0.0001991,2]
[391200442,1760417441908,-500.0,0.0001991,2]
[391200444,1760417441917,-500.0,0.0001991,2]
[391200446,1760417441927,-500.0,0.0001991,2]
[391200448,1760417441936,-605.8105665,0.0001991,2]
[391200450,1760417441945,-500.0,0.0001991,2]
[391200452,1760417441954,-500.0,0.0001991,2]
[391200454,1760417441964,-500.0,0.0001991,2]
[391200456,1760417441973,-500.0,0.0001991,2]
[391200458,1760417441983,-501.78173846,0.0001991,2]
[391200460,1760417441991,-500.0,0.0001991,2]
[391200462,1760417442000,-501.31133836,0.0001991,2]
[391200464,1760417442010,-501.09069393,0.0001991,2]
[391200466,1760417442020,-500.0,0.0001991,2]
[391200468,1760417442029,-500.0,0.0001991,2]
[391200470,1760417442038,-344.78616518,0.0001991,2]
[391200472,1760417442048,-500.0,0.0001991,2]
[391200474,1760417442057,-500.0,0.0001991,2]
[391200476,1760417442067,-300.0,0.00020104,2]
[391200478,1760417442077,-300.0,0.00020104,2]
[391200480,1760417442087,-300.0,0.00020104,2]
[391200482,1760417442096,-300.0,0.00020104,2]
[391200484,1760417442106,-300.0,0.00020104,2]
[391200486,1760417442116,-300.0,0.00020104,2]
[391200488,1760417442128,-300.0,0.00020104,2]
[391200490,1760417442137,-300.0,0.00020104,2]
[391200492,1760417442148,-300.0,0.00020104,2]
[391200494,1760417442157,-300.0,0.00020104,2]
[391200496,1760417442167,-300.0,0.00020104,2]
[391200498,1760417442176,-300.0,0.00020104,2]
[391200500,1760417442189,-300.0,0.00020104,2]
[391200502,1760417442198,-300.0,0.00020104,2]
[391200504,1760417442208,-300.0,0.00020104,2]
[391200506,1760417442219,-600.0,0.00020104,2]
[391200508,1760417442228,-172.5,0.0002031,2]
[391200510,1760417442238,-195.0,0.0002091,2]
[391200512,1760417442248,-429.7,0.0002117,3]
[391200514,1760417442257,-217.0,0.00021452,4]
[391200516,1760417442268,-217.5,0.0002151,2]
[391200518,1760417442279,-314.0,0.00021572,2]
[391200520,1760417442288,-420.0,0.00021572,2]
[391200522,1760417442297,-1200.0,0.00021676,2]
[391200524,1760417442307,-1047.3454794,0.00022056,2]
[391200526,1760417442316,-240.0,0.0002211,2]
[391200528,1760417442325,-720.0,0.00022115,20]
[391200530,1760417442334,-262.5,0.0002271,2]
[391200532,1760417442343,-285.0,0.0002331,2]
[391200534,1760417442352,-587.0,0.00023494,2]
[391200536,1760417442361,-250.0,0.00023604,2]
[391200538,1760417442373,-250.0,0.00023604,2]
[391200540,1760417442382,-250.0,0.00023604,2]
[391200542,1760417442391,-250.0,0.00023604,2]
[391200544,1760417442400,-250.0,0.00023604,2]
[391200546,1760417442409,-250.0,0.00023604,2]
[391200548,1760417442419,-250.0,0.00023604,2]
[391200550,1760417442428,-250.0,0.00023604,2]
[391200552,1760417442437,-250.0,0.00023604,2]
[391200554,1760417442446,-250.0,0.00023604,2]
[391200556,1760417442455,-250.0,0.00023604,2]
[391200558,1760417442464,-250.0,0.00023604,2]
[391200560,1760417442473,-250.0,0.00023604,2]
[391200562,1760417442482,-250.0,0.00023604,2]
[391200564,1760417442491,-250.0,0.00023604,2]
[391200566,1760417442500,-250.0,0.00023604,2]
[391200568,1760417442509,-250.0,0.00023604,2]
[391200570,1760417442518,-250.0,0.00023604,2]
[391200572,1760417442527,-307.5,0.0002391,2]
[391200574,1760417442536,-239.77,0.000241,7]
[391200576,1760417442545,-864.0,0.00024326,20]
[391200578,1760417442554,-200.0,0.0002451,7]
[391200580,1760417442563,-330.0,0.0002451,2]
[391200582,1760417442572,-686.31439026,0.00024539,2]
[391200584,1760417442580,-162.65723418,0.000247,2]
[391200586,1760417442589,-516.663588,0.000247,2]
[391200588,1760417442598,-182.0,0.0002474,14]
[391200590,1760417442608,-515.80169632,0.00024773,2]
[391200592,1760417442617,-500.0,0.00024773,2]
[391200594,1760417442630,-194.00930014,0.00024799,2]
[391200596,1760417442639,-364.73844287,0.00024799,2]
[391200598,1760417442648,-370000.0,0.000248,2]
[391200600,1760417442657,-28017.61,0.000248,7]
[391200602,1760417442667,-417.15472785,0.00024857,2]
[391200604,1760417442676,-500.0,0.00024899,4]
[391200606,1760417442685,-500.0,0.00024899,4]
[391200608,1760417442694,-500.0,0.00024899,4]
[391200610,1760417442702,-500.0,0.00024899,4]
[391200611,1760417442711,-500.0,0.00024899,4]
[391200613,1760417442720,-500.0,0.00024899,4]
[391200615,1760417442728,-500.0,0.00024899,4]
[391200617,1760417442737,-500.0,0.00024899,4]
[391200619,1760417442746,-500.0,0.00024899,4]
[391200621,1760417442755,-500.0,0.00024899,4]
[391200623,1760417442765,-500.0,0.00024899,4]
[391200626,1760417442775,-500.0,0.00024899,4]
[391200629,1760417442785,-500.0,0.00024899,4]
[391200631,1760417442794,-496.99,0.00024899,4]
[391200633,1760417442803,-309110.876876,0.000249,2]
[391200635,1760417442813,-209.0,0.00025,30]
[391200637,1760417442822,-235.941,0.00025057,9]
[391200639,1760417442834,-200.0,0.000251,7]
[391200641,1760417442844,-352.5,0.0002511,2]
[391200643,1760417442854,-1000.0,0.00025321,2]
[391200645,1760417442864,-796.0,0.00025587,2]
[391200647,1760417442877,-375.0,0.0002571,2]
[391200649,1760417442887,-7291.01,0.00026027,2]
[391200651,1760417442896,-402.43064913,0.00026067,2]
[391200653,1760417442906,-200.0,0.000261,7]
[391200655,1760417442915,-225.27546733,0.0002631,2]
[391200657,1760417442925,-1000.0,0.00026759,30]
[391200659,1760417442934,-200.0,0.000271,7]
[391200661,1760417442943,-7291.01,0.00027397,4]
[391200663,1760417442953,-516.663588,0.00027437,2]
[391200665,1760417442963,-1242.0,0.00027506,2]
[391200667,1760417442972,-2390.46,0.000279,2]
[391200669,1760417442982,-28017.61,0.000279,7]
[391200671,1760417442992,-175.0,0.00028027,27]
[391200673,1760417443002,-483.0,0.00028261,2]
[391200675,1760417443012,-1444.0,0.0002828,2]
[391200677,1760417443021,-1155.0,0.00028303,2]
[391200679,1760417443031,-483.0,0.00028373,7]
[391200681,1760417443040,-483.0,0.00028437,2]
[391200683,1760417443051,-483.0,0.00028526,2]
[391200686,1760417443061,-1444.0,0.00028673,7]
[391200687,1760417443072,-7291.01,0.00028767,6]
[391200689,1760417443080,-8495.00976783,0.00029,2]
[391200691,1760417443090,-1071.91,0.00029,2]
[391200693,1760417443099,-700.0,0.00029141,7]
[391200695,1760417443107,-307.73677994,0.00029162,5]
[391200697,1760417443116,-1071.91,0.00029174,2]
[391200699,1760417443127,-1071.91,0.00029348,2]
[391200701,1760417443136,-1000.0,0.00029434,30]
[391200703,1760417443145,-244.0,0.00029434,30]
[391200705,1760417443154,-984.342,0.00029508,2]
[391200707,1760417443164,-2163.837,0.00029508,2]
[391200709,1760417443173,-631.0,0.00029508,2]
[391200711,1760417443183,-150.109,0.00029508,2]
[391200713,1760417443192,-150.0,0.00029508,2]
[391200715,1760417443205,-600.0,0.00029548,2]
[391200717,1760417443215,-483.0,0.00029585,2]
[391200719,1760417443224,-448.14,0.00029665,2]
[391200721,1760417443233,-483.0,0.00029683,2]
[391200723,1760417443243,-483.0,0.00029696,2]
[391200725,1760417443253,-154.683435,0.00029796,2]
[391200727,1760417443262,-600.0,0.00029856,2]
[391200729,1760417443273,-1000.0,0.00029878,4]
[391200731,1760417443282,-153.0,0.0002989,30]
[391200733,1760417443291,-162.7430397,0.00029922,2]
[391200735,1760417443300,-700.0,0.00029963,7]
[391200737,1760417443309,-519.622,0.00029977,120]
[391200739,1760417443318,-273.6205,0.0003,2]
[391200741,1760417443327,-273.6205,0.0003,2]
[391200743,1760417443335,-301.41338794,0.0003,120]
[391200745,1760417443344,-1761.2362198,0.0003,10]
[391200758,1760417443453,-500.0,0.00019808,2]
[391200760,1760417443462,-500.0,0.00019808,2]
[391200762,1760417443470,-500.0,0.00019808,2]
[391200764,1760417443479,-250.49922142,0.00019808,2]
[391200792,1760417443734,-3e-08,0.00019808,2]
[391200794,1760417443746,-249.50077855,0.00019808,2]
[391200796,1760417443755,-246.93180233,0.00019808,2]
[391200798,1760417443763,-378.52259168,0.00029522,2]
[391200800,1760417443774,-693.38740832,0.00029522,2]
[391200802,1760417443784,-206.61259168,0.00029696,2]
[391200804,1760417443795,-865.29740832,0.00029696,2]
[391200806,1760417443804,-7755.1307802,0.0003,10]
[391200808,1760417443813,-800.0,0.00030026,2]
[391200810,1760417443823,-7099.49381009,0.000301,7]
[391200813,1760417443834,-282.5,0.000301,7]
[391200815,1760417443845,-652.65885198,0.000301,7]
[391200817,1760417443855,-350.0842972,0.000301,7]
[391200819,1760417443871,-849.075,0.000301,7]
[391200822,1760417443882,-432.23100322,0.000301,7]
[391201040,1760417446226,-4694.82133389,0.000301,7]
[391201047,1760417446285,-291.9102,0.000301,7]
[391201059,1760417446394,-1739.25910767,0.000301,7]
[391205730,1760417509641,1000.0,0.0001971,2]
[391205731,1760417520639,9000.01,0.00019709,2]
[391205732,1760417520665,10000.01,0.00019709,2]
[391205733,1760417520698,10000.01,0.00019709,2]
[391205734,1760417520724,10000.01,0.00019709,2]
[391205735,1760417520751,10000.01,0.00019709,2]
[391205736,1760417520795,10000.01,0.00019709,2]
[391205737,1760417520828,10000.01,0.00019709,2]
[391205738,1760417520859,10000.01,0.00019709,2]
[391205739,1760417520891,10000.01,0.00019709,2]
[391205740,1760417520922,10000.01,0.00019709,2]
[391205741,1760417571654,151.41,0.00019709,2]
[391205742,1760417582939,300.0,0.00019708,2]
[391205743,1760417585253,500.0,0.00019708,2]
[391205744,1760417585522,500.0,0.00019708,2]
[391205745,1760417585758,500.0,0.00019708,2]
[391205746,1760417586004,500.0,0.00019708,2]
[391205747,1760417586266,500.0,0.00019708,2]
[391205748,1760417586299,507.62013432,0.00019708,2]
[391205749,1760417586503,500.0,0.00019708,2]
[391205750,1760417586748,500.0,0.00019708,2]
[391205751,1760417586992,500.0,0.00019708,2]
[391205752,1760417587312,500.0,0.00019708,2]
[391205753,1760417587553,500.0,0.00019708,2]
[391205754,1760417587790,500.0,0.00019708,2]
[391205755,1760417588057,500.0,0.00019708,2]
[391205756,1760417588294,500.0,0.00019708,2]
[391205757,1760417588535,500.0,0.00019708,2]
[391205758,1760417588775,500.0,0.00019708,2]
[391205759,1760417589016,500.0,0.00019708,2]
[391205760,1760417589337,500.0,0.00019708,2]
[391205761,1760417589488,500.0,0.00019708,2]
[391205762,1760417589724,40.97986568,0.00019708,2]
[391205763,1760417589751,459.02013432,0.00019708,2]
[391205764,1760417589961,500.0,0.00019708,2]
[391205765,1760417590200,500.0,0.00019708,2]
[391205766,1760417590460,500.0,0.00019708,2]
[391205767,1760417590702,515.36104937,0.00019708,2]
[391205768,1760417595654,-5542.70032136,0.00019709,2]
[391205769,1760417595757,-10000.01,0.00019709,2]
[391205770,1760417595898,-10000.01,0.00019709,2]
[391205771,1760417596065,-10000.01,0.00019709,2]
[391205772,1760417596216,-10000.01,0.00019709,2]
[391205773,1760417596346,-10000.01,0.00019709,2]
[391205774,1760417596502,-10000.01,0.00019709,2]
[391205775,1760417597123,-10000.01,0.00019709,2]
[391205776,1760417597262,-10000.01,0.00019709,2]
[391205777,1760417597383,-10000.01,0.00019709,2]
[391205778,1760417611734,500.0,0.00019708,2]
[391205779,1760417611764,500.0,0.00019708,2]
[391205780,1760417611793,500.0,0.00019708,2]
[391205781,1760417611822,487.40280562,0.00019708,2]
[391205782,1760417611851,500.0,0.00019708,2]
[391205783,1760417611884,334.8031519,0.00019708,2]
[391205784,1760417611919,500.0,0.00019708,2]
[391205785,1760417611948,500.0,0.00019708,2]
[391205786,1760417611977,500.0,0.00019708,2]
[391205787,1760417612006,500.0,0.00019708,2]
[391205788,1760417612043,500.0,0.00019708,2]
[391205789,1760417612072,500.0,0.00019708,2]
[391205790,1760417612101,500.0,0.00019708,2]
[391205791,1760417612129,626.75156369,0.00019708,2]
[391205792,1760417612160,500.0,0.00019708,2]
[391205793,1760417612301,526.05986083,0.00019708,2]
[391205794,1760417612332,500.0,0.00019708,2]
[391205795,1760417612363,500.0,0.00019708,2]
[391205796,1760417612397,500.0,0.00019708,2]
[391205797,1760417612425,500.0,0.00019708,2]
[391205798,1760417612460,24.99261796,0.00019708,2]
[391205799,1760417612483,475.00738204,0.00019708,2]
[391205800,1760417612529,500.0,0.00019708,2]
[391205801,1760417639560,164.26155733,0.00019708,2]
[391205802,1760417639588,542.1454975,0.00019708,2]
[391205803,1760417642408,300.0,0.00019708,2]
[391205804,1760417655388,2599.52,0.00019708,2]
[391205805,1760417655624,2599.52,0.00019708,2]
[391205806,1760417655882,2599.52,0.00019708,2]
[391205807,1760417656128,2201.45,0.00019708,2]
[391205808,1760417656154,398.07,0.00019708,2]
[391205809,1760417656365,2599.52,0.00019708,2]
[391205810,1760417656611,2599.52,0.00019708,2]
[391205811,1760417656860,2599.52,0.00019708,2]
[391205812,1760417657225,1803.38,0.00019708,2]
[391205813,1760417657249,796.14,0.00019708,2]
[391205814,1760417657455,2599.52,0.00019708,2]
[391205815,1760417657688,2599.52,0.00019708,2]
[391205816,1760417657911,2599.52,0.00019708,2]
[391205817,1760417658167,1405.31,0.00019708,2]
[391205818,1760417658191,1194.21,0.00019708,2]
[391205819,1760417658448,2599.52,0.00019708,2]
[391205820,1760417658686,2599.52,0.00019708,2]
[391205821,1760417658930,2599.52,0.00019708,2]
[391205822,1760417659163,2599.52,0.00019708,2]
[391205823,1760417659390,2599.52,0.00019708,2]
[391205824,1760417659624,2599.52,0.00019708,2]
[391205825,1760417659884,2201.45,0.00019708,2]
[391205826,1760417659911,398.07,0.00019708,2]
[391205827,1760417660136,2599.52,0.00019708,2]
[391205828,1760417660383,2599.52,0.00019708,2]
[391205829,1760417660624,2599.52,0.00019708,2]
[391205830,1760417660853,1803.38,0.00019708,2]
[391205831,1760417660877,796.14,0.00019708,2]